[Event "WYCC 2018 O16"]
[Site "Halkidiki"]
[Date "2018.10.27"]
[Round "8"]
[White "Alivodic, Dario"]
[Black "Sahidi, Samir"]
[Result "1/2-1/2"]
[ECO "E20"]
[WhiteElo "2082"]
[BlackElo "2315"]
[Annotator "NA"]
[PlyCount "131"]
[EventDate "2018.10.20"]
[EventType "swiss"]
[EventCountry "GRE"]
[SourceTitle "playchess.com"]
[Source "ChessBase"]
[SourceQuality "1"]
[TimeControl "40/5400+30:1800+30"]

1. d4 {[%emt 0:00:00]} Nf6 {[%emt 0:00:00]} 2. c4 {[%emt 0:00:00]} e6 {[%emt 0:00:00]} 3. Nc3 {[%emt 0:00:00]} Bb4 {[%emt 0:00:12]} 4. f3 {[%emt 0:00:00]} d5 {[%emt 0:00:58]} 5. a3 {[%emt 0:00:00]} Bxc3+ {[%emt 0:02:48]} 6. bxc3 {[%emt 0:00:00]} b6 {[%emt 0:00:41]} 7. cxd5 {[%emt 0:07:45]} exd5 {[%emt 0:01:16]} 8. e3 {[%emt 0:01:03]} O-O {[%emt 0:02:32]} 9. Bd3 {[%emt 0:00:29]} c5 {[%emt 0:07:16]} 10. Ne2 {[%emt 0:00:47]} Ba6 {[%emt 0:03:26]} 11. O-O {[%emt 0:00:27]} Re8 {[%emt 0:03:55]} 12. Ng3 {[%emt 0:01:08]} Qd7 {[%emt 0:03:21]} 13. Bf5 {[%emt 0:09:56]} Qe7 {[%emt 0:01:40]} 14. Re1 {[%emt 0:00:26]} Nc6 {[%emt 0:05:41]} 15. Qa4 {[%emt 0:08:15]} Na5 {[%emt 0:12:18]} 16. e4 {[%emt 0:02:14]} dxe4 {[%emt 0:08:50]} 17. Nxe4 {[%emt 0:05:21]} Nxe4 {[%emt 0:01:08]} 18. Bxe4 {[%emt 0:15:27]} Qf8 {[%emt 0:11:34]} 19. Be3 {[%emt 0:04:23]} Bb7 {[%emt 0:01:39]} 20. dxc5 {[%emt 0:00:39]} Bxe4 {[%emt 0:00:17]} 21. fxe4 {[%emt 0:01:46]} Rec8 {[%emt 0:05:34]} 22. cxb6 {[%emt 0:02:22]} axb6 {[%emt 0:00:18]} 23. Qb4 {[%emt 0:03:16]} Nc4 {[%emt 0:01:09]} 24. Bd4 {[%emt 0:04:30]} Nxa3 {[%emt 0:07:04]} 25. Qb3 {[%emt 0:10:13]} b5 {[%emt 0:02:33]} 26. Rf1 {[%emt 0:02:02]} Rc7 {[%emt 0:06:48]} 27. Rf5 {[%emt 0:00:46]} h6 {[%emt 0:04:07]} 28. Raf1 {[%emt 0:01:27]} Nc4 {[%emt 0:00:21]} 29. Qxb5 {[%emt 0:08:02]} Nd6 {[%emt 0:00:23]} 30. Qe5 {[%emt 0:01:19]} Re8 {[%emt 0:00:20]} 31. Qf4 {[%emt 0:01:04]} Rxe4 {[%emt 0:00:19]} 32. Qf3 {[%emt 0:00:58]} Nxf5 {[%emt 0:01:47]} 33. Qxe4 {[%emt 0:00:08]} Nxd4 {[%emt 0:00:51]} 34. Qxd4 {[%emt 0:00:49]} Qc8 {[%emt 0:00:27]} 35. Qd5 {[%emt 0:01:48]} Rd7 {[%emt 0:00:48]} 36. Qb3 {[%emt 0:01:02]} Qc5+ {[%emt 0:00:55]} 37. Kh1 {[%emt 0:00:07]} Rc7 {[%emt 0:00:12]} 38. Rc1 {[%emt 0:00:52]} Rc8 {[%emt 0:01:02]} 39. h3 {[%emt 0:00:15]} g6 {[%emt 0:01:41]} 40. Rf1 {[%emt 0:00:00]} Rc7 {[%emt 0:00:00]} 41. Rc1 {[%emt 0:00:48]} Kg7 {[%emt 0:01:45]} 42. c4 {[%emt 0:00:11]} Qd4 {[%emt 0:00:11]} 43. Qb5 {[%emt 0:01:15]} Rc5 {[%emt 0:00:33]} 44. Qb3 {[%emt 0:00:18]} h5 {[%emt 0:00:43]} 45. Qc2 {[%emt 0:01:15]} h4 {[%emt 0:04:42]} 46. Qc3 {[%emt 0:00:37]} Qxc3 {[%emt 0:00:28]} 47. Rxc3 {[%emt 0:00:01]} Kf6 {[%emt 0:00:36]} 48. Kg1 {[%emt 0:00:03]} Ke5 {[%emt 0:00:36]} 49. Kf2 {[%emt 0:00:05]} f5 {[%emt 0:00:48]} 50. Ke3 {[%emt 0:00:10]} g5 {[%emt 0:08:55]} 51. Kd3 {[%emt 0:00:25]} Rc8 {[%emt 0:02:05]} 52. Ra3 {[%emt 0:01:41]} g4 {[%emt 0:00:42]} 53. hxg4 {[%emt 0:00:34]} fxg4 {[%emt 0:00:08]} 54. Ke3 {[%emt 0:06:14]} Rxc4 {[%emt 0:00:30]} 55. Ra5+ {[%emt 0:00:02]} Kf6 {[%emt 0:00:39]} 56. Ra6+ {[%emt 0:00:11]} Ke5 {[%emt 0:01:28]} 57. Ra5+ {[%emt 0:00:13]} Ke6 {[%emt 0:00:11]} 58. Ra6+ {[%emt 0:00:08]} Kd5 {[%emt 0:00:59]} 59. Ra5+ {[%emt 0:00:04]} Kd6 {[%emt 0:00:51]} 60. Rh5 {[%emt 0:00:27]} h3 {[%emt 0:01:08]} 61. gxh3 {[%emt 0:00:07]} gxh3 {[%emt 0:00:17]} 62. Kf2 {[%emt 0:00:05]} Rc3 {[%emt 0:00:16]} 63. Kg1 {[%emt 0:00:07]} Ke6 {[%emt 0:00:08]} 64. Kh2 {[%emt 0:00:04]} Kf6 {[%emt 0:00:05]} 65. Rxh3 {[%emt 0:00:04]} Rxh3+ {[%emt 0:00:02]} 66. Kxh3 {[%emt 0:00:16]} 1/2-1/2

[Event "WYCC 2018 O16"]
[Site "Halkidiki"]
[Date "2018.10.27"]
[Round "8"]
[White "Fernandez Garcia, Gumersindo"]
[Black "Morgunov, Daniel"]
[Result "1-0"]
[ECO "E73"]
[WhiteElo "2065"]
[BlackElo "2328"]
[Annotator "NA"]
[PlyCount "77"]
[EventDate "2018.10.20"]
[EventType "swiss"]
[EventCountry "GRE"]
[SourceTitle "playchess.com"]
[Source "ChessBase"]
[SourceQuality "1"]
[TimeControl "40/5400+30:1800+30"]

1. d4 {[%emt 0:00:00]} Nf6 {[%emt 0:00:00]} 2. c4 {[%emt 0:00:00]} g6 {[%emt 0:00:00]} 3. Nc3 {[%emt 0:00:00]} Bg7 {[%emt 0:00:00]} 4. e4 {[%emt 0:00:00]} d6 {[%emt 0:00:00]} 5. Be2 {[%emt 0:00:00]} O-O {[%emt 0:00:00]} 6. Be3 {[%emt 0:00:01]} c6 {[%emt 0:06:40]} 7. g4 {[%emt 0:06:36]} e5 {[%emt 0:06:12]} 8. d5 {[%emt 0:01:20]} cxd5 {[%emt 0:01:55]} 9. cxd5 {[%emt 0:00:07]} a5 {[%emt 0:01:48]} 10. h4 {[%emt 0:04:02]} Na6 {[%emt 0:02:54]} 11. h5 {[%emt 0:03:30]} Nc5 {[%emt 0:07:09]} 12. f3 {[%emt 0:06:18]} Bd7 {[%emt 0:11:10]} 13. Qd2 {[%emt 0:01:44]} Qe7 {[%emt 0:04:35]} 14. Nh3 {[%emt 0:12:10]} Rfc8 {[%emt 0:03:33]} 15. Nf2 {[%emt 0:06:14]} a4 {[%emt 0:02:46]} 16. Kf1 {[%emt 0:12:08]} Rab8 {[%emt 0:06:45]} 17. Rc1 {[%emt 0:06:12]} b5 {[%emt 0:00:39]} 18. Kg2 {[%emt 0:03:39]} b4 {[%emt 0:08:43]} 19. Ncd1 {[%emt 0:02:29]} Ne8 {[%emt 0:01:04]} 20. Nd3 {[%emt 0:07:52]} Bb5 {[%emt 0:07:28]} 21. Nxc5 {[%emt 0:08:59]} dxc5 {[%emt 0:02:04]} 22. b3 {[%emt 0:01:07]} a3 {[%emt 0:07:36]} 23. Bxb5 {[%emt 0:11:12]} Rxb5 {[%emt 0:00:04]} 24. Qe2 {[%emt 0:00:33]} Nd6 {[%emt 0:00:38]} 25. hxg6 {[%emt 0:01:20]} fxg6 {[%emt 0:02:48]} 26. Bf2 {[%emt 0:00:48]} Ra5 {[%emt 0:03:07]} 27. Ne3 {[%emt 0:00:11]} Nb5 {[%emt 0:02:07]} 28. Nc4 {[%emt 0:00:12]} Ra6 {[%emt 0:00:08]} 29. Nxe5 {[%emt 0:01:12]} Rb6 {[%emt 0:08:26]} 30. Nc6 {[%emt 0:00:43]} Rcxc6 {[%emt 0:00:35]} 31. dxc6 {[%emt 0:00:02]} Bd4 {[%emt 0:03:19]} 32. Qc4+ {[%emt 0:00:28]} Kg7 {[%emt 0:01:11]} 33. Bxd4+ {[%emt 0:00:40]} Nxd4 {[%emt 0:00:25]} 34. Qxd4+ {[%emt 0:02:42]} cxd4 {[%emt 0:00:09]} 35. c7 {[%emt 0:00:03]} Qg5 {[%emt 0:00:55]} 36. c8=Q {[%emt 0:00:22]} Qd2+ {[%emt 0:00:30]} 37. Kg3 {[%emt 0:00:09]} g5 {[%emt 0:00:34]} 38. Qc7+ {[%emt 0:00:15]} Kf8 {[%emt 0:00:11]} 39. Rxh7 {[%emt 0:00:31]} 1-0

[Event "WYCC 2018 O16"]
[Site "Halkidiki"]
[Date "2018.10.27"]
[Round "8"]
[White "Onslow, Alfie"]
[Black "Faerber, David"]
[Result "1/2-1/2"]
[ECO "B12"]
[WhiteElo "2037"]
[BlackElo "2279"]
[Annotator "NA"]
[PlyCount "77"]
[EventDate "2018.10.20"]
[EventType "swiss"]
[EventCountry "GRE"]
[SourceTitle "playchess.com"]
[Source "ChessBase"]
[SourceQuality "1"]
[TimeControl "40/5400+30:1800+30"]

1. e4 {[%emt 0:00:00]} c6 {[%emt 0:00:00]} 2. d4 {[%emt 0:00:30]} d5 {[%emt 0:00:06]} 3. e5 {[%emt 0:00:50]} Bf5 {[%emt 0:00:15]} 4. h4 {[%emt 0:00:16]} h5 {[%emt 0:00:43]} 5. Bd3 {[%emt 0:00:39]} Bxd3 {[%emt 0:00:39]} 6. Qxd3 {[%emt 0:00:02]} e6 {[%emt 0:00:35]} 7. Bg5 {[%emt 0:00:41]} Qa5+ {[%emt 0:03:57]} 8. Nd2 {[%emt 0:00:19]} Ne7 {[%emt 0:01:08]} 9. Ngf3 {[%emt 0:04:14]} Qa6 {[%emt 0:03:30]} 10. c4 {[%emt 0:01:41]} Nd7 {[%emt 0:01:54]} 11. b3 $11 {[%emt 0:05:59]} Nf5 {[%emt 0:06:45]} 12. Qc2 {[%emt 0:15:28]} Bb4 {[%emt 0:10:33]} 13. O-O {[%emt 0:01:32]} O-O {[%emt 0:01:57]} 14. a3 {[%emt 0:07:50]} Bxd2 {[%emt 0:09:51]} 15. Bxd2 {[%emt 0:01:05]} Rfc8 {[%emt 0:06:17]} 16. Rfc1 {[%emt 0:08:03]} dxc4 {[%emt 0:11:03]} 17. bxc4 {[%emt 0:00:14]} b5 {[%emt 0:00:18]} 18. c5 {[%emt 0:03:36]} Qb7 {[%emt 0:05:09]} 19. Ba5 {[%emt 0:07:07]} Nf8 {[%emt 0:02:57]} 20. g3 {[%emt 0:15:59]} Ng6 {[%emt 0:03:19]} 21. Qd2 {[%emt 0:00:43]} Qd7 {[%emt 0:01:56]} 22. Rd1 {[%emt 0:03:13]} Nge7 {[%emt 0:05:09]} 23. Qg5 {[%emt 0:03:35]} g6 {[%emt 0:00:54]} 24. Rd3 {[%emt 0:06:54]} Nd5 {[%emt 0:06:37]} 25. Qd2 {[%emt 0:01:13]} Kg7 {[%emt 0:05:37]} 26. Ng5 {[%emt 0:01:01]} a6 {[%emt 0:03:36]} 27. Ne4 {[%emt 0:02:20]} Re8 {[%emt 0:02:48]} 28. Re1 {[%emt 0:01:41]} Rab8 {[%emt 0:01:51]} 29. Rf3 {[%emt 0:01:43]} Rh8 {[%emt 0:00:53]} 30. Kg2 {[%emt 0:02:49]} Rbe8 {[%emt 0:00:55]} 31. Rd1 {[%emt 0:02:04]} Rb8 {[%emt 0:00:57]} 32. Re1 {[%emt 0:00:52]} Nxd4 {[%emt 0:01:38]} 33. Rd3 {[%emt 0:01:06]} Nf5 {[%emt 0:00:28]} 34. Nf6 {[%emt 0:00:08]} Qe7 {[%emt 0:01:02]} 35. Ne4 {[%emt 0:00:32]} Rb7 {[%emt 0:01:24]} 36. Nd6 {[%emt 0:00:37]} Rd7 {[%emt 0:00:33]} 37. Bc3 {[%emt 0:00:49]} Rdd8 {[%emt 0:00:36]} 38. Ba5 {[%emt 0:00:13]} Rd7 {[%emt 0:00:12]} 39. Bc3 {[%emt 0:00:12]} 1/2-1/2

[Event "WYCC 2018 O16"]
[Site "Halkidiki"]
[Date "2018.10.27"]
[Round "8"]
[White "Kim, Yunseo"]
[Black "Guerra Rivera, Salvador"]
[Result "0-1"]
[ECO "C41"]
[WhiteElo "1995"]
[BlackElo "2340"]
[Annotator "NA"]
[PlyCount "106"]
[EventDate "2018.10.20"]
[EventType "swiss"]
[EventCountry "GRE"]
[SourceTitle "playchess.com"]
[Source "ChessBase"]
[SourceQuality "1"]
[TimeControl "40/5400+30:1800+30"]

1. e4 {[%emt 0:00:00]} e5 {[%emt 0:03:10]} 2. Nf3 {[%emt 0:00:00]} d6 {[%emt 0:00:10]} 3. d4 {[%emt 0:00:05]} exd4 {[%emt 0:00:12]} 4. Nxd4 {[%emt 0:00:08]} Nf6 {[%emt 0:00:15]} 5. Nc3 {[%emt 0:00:08]} Be7 {[%emt 0:00:08]} 6. Bc4 {[%emt 0:00:46]} O-O {[%emt 0:00:23]} 7. O-O {[%emt 0:00:37]} c6 {[%emt 0:00:31]} 8. Re1 {[%emt 0:01:49]} b5 {[%emt 0:01:34]} 9. Bf1 {[%emt 0:02:08]} b4 {[%emt 0:00:24]} 10. Na4 {[%emt 0:02:08]} c5 {[%emt 0:02:02]} 11. Nf3 {[%emt 0:04:11]} Nc6 {[%emt 0:09:12]} 12. b3 {[%emt 0:06:28]} Re8 {[%emt 0:05:50]} 13. Bb2 {[%emt 0:03:43]} Bb7 {[%emt 0:13:08]} 14. e5 {[%emt 0:12:17]} dxe5 {[%emt 0:01:33]} 15. Qxd8 {[%emt 0:02:06]} Raxd8 {[%emt 0:01:39]} 16. Nxe5 {[%emt 0:01:24]} Nxe5 {[%emt 0:05:45]} 17. Bxe5 {[%emt 0:01:15]} Bc6 {[%emt 0:00:48]} 18. Rad1 {[%emt 0:04:25]} Rxd1 {[%emt 0:11:53]} 19. Rxd1 {[%emt 0:00:09]} Nd5 {[%emt 0:00:27]} 20. c4 {[%emt 0:11:00]} Nf6 {[%emt 0:04:55]} 21. Bxf6 {[%emt 0:03:43]} gxf6 {[%emt 0:00:31]} 22. Nb2 {[%emt 0:01:44]} f5 {[%emt 0:04:29]} 23. Nd3 {[%emt 0:04:29]} Rd8 {[%emt 0:00:28]} 24. Be2 {[%emt 0:05:18]} Kg7 {[%emt 0:01:15]} 25. Ne5 {[%emt 0:04:39]} Rxd1+ {[%emt 0:01:49]} 26. Bxd1 {[%emt 0:00:07]} Be4 {[%emt 0:00:11]} 27. f3 {[%emt 0:01:01]} Bb7 {[%emt 0:01:20]} 28. Bc2 {[%emt 0:11:56]} Kf6 {[%emt 0:01:19]} 29. Nd3 {[%emt 0:00:59]} Bd6 {[%emt 0:00:28]} 30. Kf2 {[%emt 0:00:25]} h5 {[%emt 0:03:15]} 31. g3 {[%emt 0:01:39]} Bc6 {[%emt 0:01:53]} 32. Nf4 {[%emt 0:01:42]} h4 {[%emt 0:01:04]} 33. Nd5+ {[%emt 0:01:12]} Bxd5 {[%emt 0:00:25]} 34. cxd5 {[%emt 0:00:07]} hxg3+ {[%emt 0:00:23]} 35. hxg3 {[%emt 0:00:05]} Ke5 {[%emt 0:00:03]} 36. Bd3 {[%emt 0:03:42]} f4 {[%emt 0:08:32]} 37. gxf4+ {[%emt 0:02:53]} Kd4 {[%emt 0:00:13]} 38. Bc4 {[%emt 0:01:14]} a5 {[%emt 0:04:40]} 39. Bb5 {[%emt 0:01:21]} Bxf4 {[%emt 0:03:23]} 40. Ke2 {[%emt 0:00:00]} f6 {[%emt 0:00:00]} 41. Bc6 {[%emt 0:10:36]} Kc3 {[%emt 0:07:05]} 42. Be8 {[%emt 0:06:29]} c4 {[%emt 0:07:08]} 43. bxc4 {[%emt 0:01:03]} Kb2 {[%emt 0:00:04]} 44. Kd3 {[%emt 0:16:44]} Kxa2 {[%emt 0:00:07]} 45. Ke4 {[%emt 0:00:20]} Bd6 {[%emt 0:00:34]} 46. Kf5 {[%emt 0:00:37]} Kb3 {[%emt 0:11:32]} 47. Ke6 {[%emt 0:03:49]} a4 {[%emt 0:00:30]} 48. Bxa4+ {[%emt 0:00:47]} Kxa4 {[%emt 0:00:03]} 49. Kxd6 {[%emt 0:00:05]} b3 {[%emt 0:00:02]} 50. c5 {[%emt 0:00:04]} b2 {[%emt 0:00:08]} 51. c6 {[%emt 0:00:16]} b1=Q {[%emt 0:00:04]} 52. c7 {[%emt 0:00:12]} Qb7 {[%emt 0:00:05]} 53. f4 {[%emt 0:00:58]} Kb5 {[%emt 0:00:07]} 0-1

[Event "WYCC 2018 O16"]
[Site "Halkidiki"]
[Date "2018.10.27"]
[Round "8"]
[White "Loukopoulos, Panagiotis-Athanasi"]
[Black "Nielsen, Andre"]
[Result "0-1"]
[ECO "C50"]
[WhiteElo "1988"]
[BlackElo "2260"]
[Annotator "NA"]
[PlyCount "110"]
[EventDate "2018.10.20"]
[EventType "swiss"]
[EventCountry "GRE"]
[SourceTitle "playchess.com"]
[Source "ChessBase"]
[SourceQuality "1"]
[TimeControl "40/5400+30:1800+30"]

1. e4 {[%emt 0:00:00]} e5 {[%emt 0:00:00]} 2. Nf3 {[%emt 0:00:00]} Nc6 {[%emt 0:00:00]} 3. Bc4 {[%emt 0:00:00]} Nf6 {[%emt 0:00:11]} 4. d3 {[%emt 0:00:00]} Bc5 {[%emt 0:00:46]} 5. O-O {[%emt 0:00:00]} d6 {[%emt 0:01:46]} 6. c3 {[%emt 0:00:11]} O-O {[%emt 0:04:18]} 7. Bg5 {[%emt 0:00:08]} h6 {[%emt 0:00:40]} 8. Bh4 {[%emt 0:00:05]} a6 {[%emt 0:03:25]} 9. Nbd2 {[%emt 0:02:32]} Ba7 {[%emt 0:03:49]} 10. Bb3 {[%emt 0:03:20]} Be6 {[%emt 0:10:12]} 11. Bc2 {[%emt 0:07:13]} Kh8 {[%emt 0:16:52]} 12. Re1 {[%emt 0:01:54]} Rg8 {[%emt 0:01:03]} 13. Bg3 {[%emt 0:18:40]} Ne7 {[%emt 0:07:13]} 14. d4 {[%emt 0:01:52]} Ng6 {[%emt 0:00:48]} 15. h3 {[%emt 0:13:33]} Nh5 {[%emt 0:06:13]} 16. Nxe5 {[%emt 0:08:26]} dxe5 {[%emt 0:00:45]} 17. Qxh5 {[%emt 0:00:03]} exd4 {[%emt 0:00:52]} 18. Nf3 {[%emt 0:07:37]} dxc3 {[%emt 0:03:44]} 19. bxc3 {[%emt 0:00:03]} Qe7 {[%emt 0:01:05]} 20. Nd4 {[%emt 0:08:04]} Rad8 {[%emt 0:03:50]} 21. Nxe6 {[%emt 0:06:49]} Qxe6 {[%emt 0:00:20]} 22. Bb3 {[%emt 0:00:39]} Qe7 {[%emt 0:03:44]} 23. e5 {[%emt 0:04:01]} Kh7 {[%emt 0:12:51]} 24. e6 {[%emt 0:01:32]} Qf6 {[%emt 0:04:59]} 25. exf7 {[%emt 0:01:04]} Rgf8 {[%emt 0:00:14]} 26. Re2 {[%emt 0:04:32]} Qxc3 {[%emt 0:03:03]} 27. Be5 {[%emt 0:04:16]} Nxe5 {[%emt 0:00:26]} 28. Qxe5 {[%emt 0:00:03]} Qxe5 {[%emt 0:01:50]} 29. Rxe5 {[%emt 0:00:03]} Bd4 {[%emt 0:00:39]} 30. Rae1 {[%emt 0:00:29]} Bxe5 {[%emt 0:01:34]} 31. Rxe5 {[%emt 0:00:03]} Rd7 {[%emt 0:01:18]} 32. Bc2+ {[%emt 0:02:52]} Kh8 {[%emt 0:01:01]} 33. Bg6 {[%emt 0:01:09]} Rdxf7 {[%emt 0:00:58]} 34. Bxf7 {[%emt 0:00:04]} Rxf7 {[%emt 0:00:09]} 35. Re8+ {[%emt 0:00:05]} Kh7 {[%emt 0:00:06]} 36. Rb8 {[%emt 0:00:03]} b6 {[%emt 0:01:06]} 37. Ra8 {[%emt 0:04:18]} a5 {[%emt 0:00:49]} 38. Rd8 {[%emt 0:00:09]} Kg6 {[%emt 0:01:28]} 39. Kf1 {[%emt 0:00:19]} Kf6 {[%emt 0:00:22]} 40. Ke2 {[%emt 0:00:00]} Ke6 {[%emt 0:00:00]} 41. Ke3 {[%emt 0:06:10]} Rd7 {[%emt 0:04:12]} 42. Rg8 {[%emt 0:00:16]} Kd5 {[%emt 0:00:42]} 43. f4 {[%emt 0:10:24]} b5 {[%emt 0:02:04]} 44. a4 {[%emt 0:03:39]} bxa4 {[%emt 0:01:11]} 45. Ra8 {[%emt 0:00:02]} Kc4 {[%emt 0:00:44]} 46. Rxa5 {[%emt 0:00:03]} Re7+ {[%emt 0:01:05]} 47. Kf3 {[%emt 0:00:14]} Kb4 {[%emt 0:00:29]} 48. Ra7 {[%emt 0:00:03]} a3 {[%emt 0:01:05]} 49. g4 {[%emt 0:00:48]} Kb3 {[%emt 0:00:38]} 50. Rb7+ {[%emt 0:00:23]} Kc2 {[%emt 0:08:31]} 51. Ra7 {[%emt 0:00:03]} Kb2 {[%emt 0:10:16]} 52. Rb7+ {[%emt 0:03:36]} Ka1 {[%emt 0:00:25]} 53. f5 {[%emt 0:02:13]} a2 {[%emt 0:01:02]} 54. Kf2 {[%emt 0:01:28]} Re4 {[%emt 0:01:55]} 55. Rxc7 {[%emt 0:00:02]} Kb2 {[%emt 0:00:12]} 0-1

[Event "WYCC 2018 O16"]
[Site "Halkidiki"]
[Date "2018.10.28"]
[Round "9"]
[White "Teclaf, Pawel"]
[Black "Petriashvili, Nikoloz"]
[Result "1/2-1/2"]
[ECO "B38"]
[WhiteElo "2384"]
[BlackElo "2343"]
[Annotator "NA"]
[PlyCount "130"]
[EventDate "2018.10.20"]
[EventType "swiss"]
[EventCountry "GRE"]
[SourceTitle "playchess.com"]
[Source "ChessBase"]
[SourceQuality "1"]
[TimeControl "40/5400+30:1800+30"]

1. Nf3 {[%emt 0:00:00]} c5 {[%emt 0:00:00]} 2. e4 {[%emt 0:00:00]} g6 {[%emt 0:00:02]} 3. d4 {[%emt 0:00:12]} cxd4 {[%emt 0:00:05]} 4. Nxd4 {[%emt 0:00:19]} Bg7 {[%emt 0:00:08]} 5. c4 {[%emt 0:00:23]} Nc6 {[%emt 0:00:14]} 6. Be3 {[%emt 0:00:06]} Nf6 {[%emt 0:00:32]} 7. Nc3 {[%emt 0:00:05]} O-O {[%emt 0:00:30]} 8. Be2 {[%emt 0:06:55]} b6 {[%emt 0:00:13]} 9. O-O {[%emt 0:05:28]} Bb7 {[%emt 0:00:06]} 10. f3 {[%emt 0:04:13]} e6 {[%emt 0:01:19]} 11. Qd2 {[%emt 0:06:19]} d5 {[%emt 0:06:43]} 12. Nxc6 {[%emt 0:02:59]} Bxc6 {[%emt 0:00:02]} 13. cxd5 {[%emt 0:02:08]} exd5 {[%emt 0:00:02]} 14. e5 {[%emt 0:00:17]} Ne8 {[%emt 0:07:12]} 15. f4 {[%emt 0:03:35]} f6 {[%emt 0:01:24]} 16. Bf3 {[%emt 0:16:35]} fxe5 {[%emt 0:02:51]} 17. Nxd5 {[%emt 0:02:21]} exf4 {[%emt 0:11:32]} 18. Bxf4 {[%emt 0:01:43]} Kh8 {[%emt 0:07:46]} 19. Rac1 {[%emt 0:06:10]} Bxd5 {[%emt 0:09:02]} 20. Bxd5 {[%emt 0:03:13]} Rc8 {[%emt 0:01:23]} 21. Rcd1 {[%emt 0:00:49]} Nf6 {[%emt 0:08:26]} 22. Bb7 {[%emt 0:07:58]} Qxd2 {[%emt 0:01:41]} 23. Rxd2 {[%emt 0:01:21]} Rcd8 {[%emt 0:02:42]} 24. Rxd8 {[%emt 0:04:23]} Rxd8 {[%emt 0:00:05]} 25. Bf3 {[%emt 0:03:07]} h6 {[%emt 0:06:37]} 26. Be5 {[%emt 0:04:16]} Re8 {[%emt 0:02:05]} 27. Re1 {[%emt 0:01:37]} Kh7 {[%emt 0:00:24]} 28. Bc3 {[%emt 0:00:46]} Rxe1+ {[%emt 0:00:26]} 29. Bxe1 {[%emt 0:00:01]} Nd7 {[%emt 0:00:15]} 30. b3 {[%emt 0:00:20]} Bd4+ {[%emt 0:00:04]} 31. Kf1 {[%emt 0:00:16]} Kg7 {[%emt 0:00:10]} 32. Ke2 {[%emt 0:00:36]} Ne5 {[%emt 0:00:04]} 33. Be4 {[%emt 0:00:28]} Kf6 {[%emt 0:00:59]} 34. Bd2 {[%emt 0:01:41]} g5 {[%emt 0:01:27]} 35. h3 {[%emt 0:02:09]} h5 {[%emt 0:02:54]} 36. Be3 {[%emt 0:03:20]} Bxe3 {[%emt 0:03:52]} 37. Kxe3 {[%emt 0:00:02]} h4 {[%emt 0:00:05]} 38. Bb7 {[%emt 0:03:02]} Nf7 {[%emt 0:04:53]} 39. Kd4 {[%emt 0:03:08]} Kf5 {[%emt 0:00:51]} 40. Ke3 {[%emt 0:00:00]} Nd6 {[%emt 0:00:00]} 41. Ba8 {[%emt 0:10:32]} Ke5 {[%emt 0:01:17]} 42. Kf3 {[%emt 0:02:20]} Nf5 {[%emt 0:00:28]} 43. Kg4 {[%emt 0:01:37]} Kf6 {[%emt 0:00:05]} 44. Bb7 {[%emt 0:02:51]} Nd6 {[%emt 0:04:48]} 45. Bd5 {[%emt 0:01:57]} Nb5 {[%emt 0:00:35]} 46. Bc4 {[%emt 0:02:30]} Nc3 {[%emt 0:01:16]} 47. a4 {[%emt 0:00:39]} Ne4 {[%emt 0:01:38]} 48. Be2 {[%emt 0:01:25]} Nc5 {[%emt 0:04:58]} 49. Bd1 {[%emt 0:01:43]} Nd3 {[%emt 0:10:05]} 50. Bc2 {[%emt 0:01:08]} Ne5+ {[%emt 0:00:12]} 51. Kh5 {[%emt 0:00:03]} Nd7 {[%emt 0:02:32]} 52. Kg4 {[%emt 0:02:38]} Ne5+ {[%emt 0:00:06]} 53. Kh5 {[%emt 0:00:02]} a5 {[%emt 0:00:33]} 54. Be4 {[%emt 0:01:23]} Nd7 {[%emt 0:00:04]} 55. Kg4 {[%emt 0:02:18]} Nc5 {[%emt 0:00:58]} 56. Bc2 {[%emt 0:00:50]} Ne6 {[%emt 0:01:06]} 57. Bh7 {[%emt 0:00:43]} Nd4 {[%emt 0:01:19]} 58. Bg8 {[%emt 0:00:01]} Nc6 {[%emt 0:01:38]} 59. Bh7 {[%emt 0:00:18]} Ne5+ {[%emt 0:00:18]} 60. Kh5 {[%emt 0:00:01]} Nd7 {[%emt 0:01:17]} 61. Kg4 {[%emt 0:01:01]} Nc5 {[%emt 0:00:36]} 62. Bc2 {[%emt 0:00:55]} Ne6 {[%emt 0:00:40]} 63. Bh7 {[%emt 0:00:32]} Nd4 {[%emt 0:00:41]} 64. Bg8 {[%emt 0:00:03]} Nf5 {[%emt 0:00:14]} 65. Bh7 {[%emt 0:00:13]} Nd4 {[%emt 0:03:00]} 1/2-1/2

[Event "WYCC 2018 O16"]
[Site "Halkidiki"]
[Date "2018.10.28"]
[Round "9"]
[White "Lianes Garcia, Marcos"]
[Black "Perez Perez, Gabriel"]
[Result "1-0"]
[ECO "D45"]
[WhiteElo "2376"]
[BlackElo "2125"]
[Annotator "NA"]
[PlyCount "57"]
[EventDate "2018.10.20"]
[EventType "swiss"]
[EventCountry "GRE"]
[SourceTitle "playchess.com"]
[Source "ChessBase"]
[SourceQuality "1"]
[TimeControl "40/5400+30:1800+30"]

1. d4 {[%emt 0:00:00]} d5 {[%emt 0:00:00]} 2. c4 {[%emt 0:00:45]} c6 {[%emt 0:00:13]} 3. Nc3 {[%emt 0:01:52]} Nf6 {[%emt 0:00:02]} 4. Nf3 {[%emt 0:00:33]} e6 {[%emt 0:01:21]} 5. e3 {[%emt 0:01:36]} Nbd7 {[%emt 0:01:12]} 6. b3 {[%emt 0:07:46]} Bd6 {[%emt 0:02:18]} 7. Bb2 {[%emt 0:06:02]} O-O {[%emt 0:00:59]} 8. Qc2 {[%emt 0:20:03]} Qe7 {[%emt 0:07:40]} 9. Be2 {[%emt 0:05:41]} a6 $11 {[%emt 0:06:41] LiveBook: 47 Games} 10. O-O {[%emt 0:07:40]} e5 {[%emt 0:15:20]} 11. dxe5 {[%emt 0:07:30]} Nxe5 {[%emt 0:00:12]} 12. cxd5 {[%emt 0:00:50]} cxd5 {[%emt 0:03:15]} 13. Rad1 {[%emt 0:14:31]} Bg4 {[%emt 0:05:36]} 14. Nxd5 {[%emt 0:07:49]} Nxd5 {[%emt 0:00:25]} 15. Rxd5 {[%emt 0:03:38]} Nxf3+ {[%emt 0:04:21]} 16. Bxf3 {[%emt 0:00:14]} Bxf3 {[%emt 0:03:45]} 17. gxf3 {[%emt 0:00:05]} Rfd8 {[%emt 0:06:24]} 18. Rfd1 {[%emt 0:02:04]} Bc7 {[%emt 0:09:52]} 19. Qe4 {[%emt 0:02:46]} Rxd5 {[%emt 0:08:38]} 20. Qxe7 {[%emt 0:00:17]} Rxd1+ {[%emt 0:00:02]} 21. Kg2 {[%emt 0:00:05]} Rc8 {[%emt 0:00:26]} 22. Qg5 {[%emt 0:00:24]} f6 {[%emt 0:00:39]} 23. Bxf6 {[%emt 0:00:08]} g6 {[%emt 0:00:17]} 24. Qh6 {[%emt 0:02:00]} Rd7 {[%emt 0:00:10]} 25. Qh3 {[%emt 0:00:05]} Rcd8 {[%emt 0:00:13]} 26. Bxd8 {[%emt 0:01:01]} Rxd8 {[%emt 0:00:01]} 27. Qe6+ {[%emt 0:00:09]} Kf8 {[%emt 0:00:18]} 28. Qf6+ {[%emt 0:00:08]} Ke8 {[%emt 0:00:17]} 29. Qh8+ {[%emt 0:00:43]} 1-0